fUSD/lending_fUSD_20250313
["ID","MTS","AMOUNT","RATE_DAILY","PERIOD"]
[356108888,1741909896222,-500.0,0.00025273,3]
[356108889,1741909896235,-1208.71,0.00025273,3]
[356108890,1741909896246,-500.0,0.00025273,3]
[356108891,1741909896258,-961.24,0.00025273,3]
[356108892,1741909896269,-500.0,0.00025273,3]
[356108893,1741909896281,-500.0,0.00025273,3]
[356108894,1741909896292,-500.0,0.00025273,3]
[356108895,1741909896305,-945.98,0.00025273,3]
[356108896,1741909896316,-500.0,0.00025273,3]
[356108897,1741909896328,-500.0,0.00025273,3]
[356108898,1741909896339,-500.0,0.00025273,3]
[356108899,1741909896351,-500.0,0.00025273,3]
[356108900,1741909896363,-599.05,0.00025273,3]
[356108901,1741909896374,-500.0,0.00025273,3]
[356108902,1741909896386,-1322.8,0.00025273,3]
[356108903,1741909896399,-500.0,0.00025273,3]
[356108904,1741909896410,-500.0,0.00025273,3]
[356108905,1741909896421,-524.04,0.00025273,3]
[356108906,1741909896435,-500.0,0.00025273,3]
[356108907,1741909896447,-500.0,0.00025273,3]
[356108908,1741909896460,-500.0,0.00025273,3]
[356108909,1741909896471,-1162.99,0.00025273,3]
[356108910,1741909896485,-1064.48,0.00025273,3]
[356108911,1741909896496,-500.0,0.00025273,3]
[356108912,1741909896508,-2009.2,0.00025273,3]
[356108913,1741909896521,-1104.79,0.00025273,3]
[356108914,1741909896533,-1347.3,0.00025273,2]
[356108915,1741909896545,-500.0,0.00025273,3]
[356108916,1741909896556,-557.94850397,0.00025273,3]
[356108917,1741909896568,-1045.89,0.00025273,3]
[356108918,1741909896579,-500.0,0.00025273,3]
[356108919,1741909896591,-500.0,0.00025273,3]
[356108920,1741909896604,-1177.15,0.00025273,3]
[356108921,1741909896616,-1278.64,0.00025273,3]
[356108922,1741909896628,-1471.45,0.00025273,3]
[356108923,1741909896640,-500.0,0.00025273,3]
[356108924,1741909896652,-500.0,0.00025273,3]
[356108925,1741909896664,-500.0,0.00025273,3]
[356108926,1741909896675,-500.0,0.00025273,3]
[356108927,1741909896688,-1032.31,0.00025273,3]
[356108928,1741909896699,-500.0,0.00025273,3]
[356108929,1741909896712,-516.89,0.00025273,3]
[356108930,1741909896724,-1030.03,0.00025273,3]
[356108931,1741909896737,-500.0,0.00025273,3]
[356108932,1741909896748,-500.0,0.00025273,3]
[356108933,1741909896760,-500.0,0.00025273,3]
[356108934,1741909896772,-500.0,0.00025273,3]
[356108935,1741909896785,-500.0,0.00025273,3]
[356108936,1741909896797,-500.0,0.00025273,3]
[356108937,1741909896808,-520.87,0.00025273,3]
[356108938,1741909896820,-583.44,0.00025273,3]
[356108939,1741909896832,-500.0,0.00025273,3]
[356108940,1741909896844,-531.32,0.00025273,3]
[356108941,1741909896857,-549.11,0.00025273,3]
[356108942,1741909896869,-500.0,0.00025273,3]
[356108943,1741909896881,-500.0,0.00025273,3]
[356108944,1741909896893,-500.0,0.00025273,3]
[356108945,1741909896905,-500.0,0.00025273,3]
[356108946,1741909896918,-500.0,0.00025273,3]
[356108947,1741909896932,-665.05,0.00025273,3]
[356108948,1741909896945,-500.0,0.00025273,2]
[356108949,1741909896960,-1886.33,0.00025273,3]
[356108950,1741909896974,-500.0,0.00025273,3]
[356108951,1741909896990,-1603.3,0.00025273,3]
[356108952,1741909897005,-500.0,0.00025273,3]
[356108953,1741909897018,-1399.34,0.00025273,3]
[356108954,1741909897033,-507.55,0.00025273,3]
[356108955,1741909897047,-500.0,0.00025273,3]
[356108956,1741909897061,-500.0,0.00025273,3]
[356108957,1741909897076,-500.0,0.00025273,3]
[356108958,1741909897089,-500.0,0.00025273,3]
[356108959,1741909897103,-500.0,0.00025273,3]
[356108960,1741909897117,-1162.37,0.00025273,3]
[356108961,1741909897131,-503.04,0.00025273,3]
[356108962,1741909897146,-637.46,0.00025273,3]
[356108963,1741909897159,-500.0,0.00025273,3]
[356108964,1741909897173,-500.0,0.00025273,3]
[356108965,1741909897186,-500.0,0.00025273,3]
[356108966,1741909897199,-500.0,0.00025273,3]
[356108967,1741909897214,-500.0,0.00025273,3]
[356108968,1741909897227,-1799.26,0.00025273,3]
[356108969,1741909897241,-1000.0,0.00025273,60]
[356108970,1741909897255,-500.0,0.00025273,3]
[356108971,1741909897268,-500.0,0.00025273,3]
[356108972,1741909897282,-1038.47,0.00025273,3]
[356108973,1741909897297,-500.0,0.00025273,3]
[356108974,1741909897311,-1488.89,0.00025273,3]
[356108975,1741909897325,-509.79,0.00025273,3]
[356108976,1741909897339,-1529.19,0.00025273,3]
[356108977,1741909897353,-500.0,0.00025273,3]
[356108978,1741909897368,-1146.19,0.00025273,3]
[356108979,1741909897383,-500.0,0.00025273,3]
[356108980,1741909897396,-1230.07,0.00025273,3]
[356108981,1741909897410,-1616.56,0.00025273,3]
[356108982,1741909897424,-500.0,0.00025273,3]
[356108983,1741909897439,-500.0,0.00025273,3]
[356108984,1741909897455,-500.0,0.00025273,3]
[356108985,1741909897469,-500.0,0.00025273,3]
[356108986,1741909897484,-766.89,0.00025273,3]
[356108987,1741909897497,-503.06,0.00025273,3]
[356108988,1741909897511,-828.77,0.00025273,3]
[356108989,1741909897525,-566.59,0.00025273,3]
[356108990,1741909897538,-877.86,0.00025273,3]
[356108991,1741909897553,-1515.34,0.00025273,3]
[356108992,1741909897568,-500.0,0.00025273,3]
[356108993,1741909897579,-974.37,0.00025273,3]
[356108994,1741909897590,-637.9,0.00025273,3]
[356108995,1741909897600,-878.52,0.00025273,3]
[356108996,1741909897611,-500.0,0.00025273,3]
[356108997,1741909897836,-500.0,0.00025273,3]
[356108998,1741909897855,-500.0,0.00025273,3]
[356108999,1741909897865,-500.0,0.00025273,3]
[356109000,1741909897875,-500.0,0.00025273,3]
[356109001,1741909897885,-500.0,0.00025273,3]
[356109002,1741909897894,-581.67,0.00025273,3]
[356109003,1741909897905,-1951.21,0.00025273,3]
[356109004,1741909897915,-500.0,0.00025273,3]
[356109005,1741909897924,-500.0,0.00025273,3]
[356109006,1741909897933,-2023.2,0.00025273,3]
[356109007,1741909897943,-2022.67,0.00025273,3]
[356109008,1741909897953,-1071.52,0.00025273,3]
[356109009,1741909897962,-1319.48,0.00025273,3]
[356109010,1741909897973,-1318.79,0.00025273,3]
[356109011,1741909897983,-817.82,0.00025273,3]
[356109012,1741909897993,-1858.28,0.00025273,3]
[356109013,1741909898004,-500.0,0.00025273,3]
[356109014,1741909898015,-500.0,0.00025273,3]
[356109015,1741909898025,-500.0,0.00025273,3]
[356109016,1741909898034,-1341.33,0.00025273,3]
[356109017,1741909898044,-500.0,0.00025273,3]
[356109018,1741909898053,-500.0,0.00025273,3]
[356109019,1741909898063,-500.0,0.00025273,3]
[356109020,1741909898072,-1345.3,0.00025273,3]
[356109021,1741909898082,-500.0,0.00025273,2]
[356109022,1741909898092,-1005.07,0.00025273,3]
[356109023,1741909898101,-2009.8,0.00025273,3]
[356109024,1741909898111,-761.68,0.00025273,3]
[356109025,1741909898120,-500.0,0.00025273,3]
[356109026,1741909898130,-500.0,0.00025273,3]
[356109027,1741909898139,-1194.67,0.00025273,3]
[356109028,1741909898148,-1173.33,0.00025273,3]
[356109029,1741909898158,-647.14,0.00025273,3]
[356109030,1741909898168,-500.0,0.00025273,3]
[356109031,1741909898179,-610.98,0.00025273,3]
[356109032,1741909898189,-1389.09,0.00025273,3]
[356109033,1741909898199,-500.0,0.00025273,3]
[356109034,1741909898208,-558.82,0.00025273,3]
[356109035,1741909898218,-535.09,0.00025273,3]
[356109036,1741909898227,-1705.22,0.00025273,3]
[356109037,1741909898238,-500.0,0.00025273,3]
[356109038,1741909898248,-792.15,0.00025273,3]
[356109039,1741909898259,-1894.67,0.00025273,3]
[356109040,1741909898268,-1930.42,0.00025273,3]
[356109041,1741909898278,-500.0,0.00025273,3]
[356109042,1741909898287,-573.45,0.00025273,3]
[356109043,1741909898297,-4252.22,0.00025273,3]
[356109044,1741909898307,-1350.01,0.00025273,3]
[356109045,1741909898317,-500.0,0.00025273,3]
[356109046,1741909898327,-500.0,0.00025273,3]
[356109047,1741909898337,-957.24,0.00025273,3]
[356109048,1741909898346,-813.96,0.00025273,3]
[356109049,1741909898356,-500.0,0.00025273,3]
[356109050,1741909898366,-659.78,0.00025273,3]
[356109051,1741909898375,-666.36,0.00025273,3]
[356109052,1741909898385,-500.0,0.00025273,3]
[356109053,1741909898395,-500.0,0.00025273,3]
[356109054,1741909898404,-1214.54,0.00025273,3]
[356109055,1741909898414,-500.0,0.00025273,3]
[356109056,1741909898424,-500.0,0.00025273,3]
[356109057,1741909898434,-740.67,0.00025273,3]
[356109058,1741909898447,-500.0,0.00025273,3]
[356109059,1741909898457,-1011.7,0.00025273,3]
[356109060,1741909898466,-500.0,0.00025273,3]
[356109061,1741909898476,-1446.01,0.00025273,3]
[356109062,1741909898488,-509.81,0.00025273,3]
[356109063,1741909898498,-500.0,0.00025273,3]
[356109064,1741909898508,-506.61,0.00025273,3]
[356109065,1741909898519,-1624.15,0.00025273,3]
[356109066,1741909898528,-1714.12,0.00025273,3]
[356109067,1741909898538,-1542.57,0.00025273,3]
[356109068,1741909898547,-679.28,0.00025273,3]
[356109069,1741909898557,-511.82,0.00025273,3]
[356109070,1741909898567,-732.6,0.00025273,3]
[356109071,1741909898577,-509.45,0.00025273,3]
[356109072,1741909898587,-528.56,0.00025273,3]
[356109073,1741909898598,-803.83,0.00025273,3]
[356109074,1741909898608,-500.0,0.00025273,3]
[356109075,1741909898618,-500.0,0.00025273,3]
[356109076,1741909898628,-500.0,0.00025273,3]
[356109077,1741909898637,-1621.13,0.00025273,3]
[356109078,1741909898647,-500.0,0.00025273,3]
[356109079,1741909898657,-684.37,0.00025273,3]
[356109080,1741909898667,-500.0,0.00025273,3]
[356109081,1741909898677,-3776.5,0.00025273,3]
[356109082,1741909898687,-500.0,0.00025273,3]
[356109083,1741909898697,-500.0,0.00025273,3]
[356109084,1741909898706,-568.39,0.00025273,3]
[356109085,1741909898716,-500.0,0.00025273,3]
[356109086,1741909898726,-500.0,0.00025273,3]
[356109087,1741909898736,-1817.75,0.00025273,3]
[356109088,1741909898746,-1602.7,0.00025273,3]
[356109089,1741909898755,-500.0,0.00025273,3]
[356109090,1741909898766,-500.0,0.00025273,3]
[356109091,1741909898776,-938.17,0.00025273,3]
[356109092,1741909898785,-1921.94,0.00025273,3]
[356109093,1741909898795,-500.0,0.00025273,3]
[356109094,1741909898805,-515.11,0.00025273,3]
[356109095,1741909898815,-500.0,0.00025273,3]
[356109096,1741909898824,-500.0,0.00025273,3]
[356109097,1741909898833,-519.89,0.00025273,3]
[356109098,1741909898843,-547.45,0.00025273,3]
[356109099,1741909898853,-1144.38,0.00025273,3]
[356109100,1741909898861,-500.0,0.00025273,3]
[356109101,1741909898871,-1019.22,0.00025273,3]
[356109102,1741909898881,-303.28021438,0.00025273,3]
[356109103,1741909898892,-501.97,0.00025273,3]
[356109104,1741909898902,-742.8,0.00025273,3]
[356109105,1741909898912,-500.0,0.00025273,3]
[356109106,1741909898922,-947.29,0.00025273,3]
[356109107,1741909898932,-1068.83,0.00025273,3]
[356109108,1741909898942,-500.0,0.00025273,3]
[356109109,1741909898952,-1182.53,0.00025273,3]
[356109110,1741909898961,-1076.88,0.00025273,3]
[356109111,1741909898971,-1771.49,0.00025299,3]
[356109112,1741909898982,-1290.76,0.00025299,3]
[356109113,1741909898991,-559.65,0.00025299,3]
[356109114,1741909899001,-1582.8,0.00025299,3]
[356109115,1741909899010,-500.0,0.00025299,3]
[356109116,1741909899021,-500.0,0.00025299,3]
[356109117,1741909899030,-628.37,0.00025299,3]
[356109118,1741909899041,-500.0,0.00025299,3]
[356109119,1741909899050,-500.0,0.00025299,3]
[356109120,1741909899060,-534.48,0.00025299,3]
[356109121,1741909899072,-1267.72,0.00025299,3]
[356109122,1741909899081,-1652.9,0.00025299,3]
[356109123,1741909899091,-2343.56,0.00025299,3]
[356109124,1741909899100,-534.22,0.00025299,3]
[356109125,1741909899110,-855.84,0.00025299,3]
[356109126,1741909899120,-1751.29,0.00025299,3]
[356109127,1741909899129,-521.41,0.00025299,3]
[356109128,1741909899139,-1817.04,0.00025299,3]
[356109129,1741909899148,-500.0,0.00025299,3]
[356109130,1741909899158,-1529.79,0.00025299,3]
[356109131,1741909899168,-626.51,0.00025299,3]
[356109132,1741909899177,-500.0,0.00025299,3]
[356109133,1741909899188,-500.0,0.00025299,3]
[356109134,1741909899198,-1836.79,0.00025299,3]
[356109135,1741909899207,-647.08,0.00025299,3]
[356109136,1741909899217,-2784.94,0.00025299,3]
[356109137,1741909899226,-972.39,0.00025299,3]
[356109138,1741909899236,-1153.097042,0.00025299,3]
[356109139,1741909899246,-950.08,0.00025299,3]
[356109140,1741909899258,-663.57,0.00025299,3]
[356109141,1741909899268,-1612.27,0.00025299,3]
[356109142,1741909899278,-1194.86,0.00025299,3]
[356109143,1741909899288,-366.121728,0.00025299,3]
[356109144,1741909899298,-542.19,0.00025299,3]
[356109145,1741909899308,-500.0,0.00025299,3]
[356109146,1741909899317,-153.80157,0.00025299,3]
[356109147,1741909899327,-632.82,0.00025299,3]
[356109148,1741909899337,-503.16,0.00025299,3]
[356109149,1741909899346,-500.0,0.00025299,3]
[356109150,1741909899356,-500.0,0.00025299,3]
[356109151,1741909899366,-500.0,0.00025299,3]
[356109152,1741909899375,-686.97,0.00025299,3]
[356109153,1741909899385,-1718.94,0.00025299,3]
[356109154,1741909899394,-593.31,0.00025299,3]
[356109155,1741909899403,-1023.55,0.00025299,3]
[356109156,1741909899413,-1537.99,0.00025299,3]
[356109157,1741909899422,-500.0,0.00025299,3]
[356109158,1741909899433,-500.0,0.00025299,3]
[356109159,1741909899445,-2081.77,0.00025299,3]
[356109160,1741909899455,-595.3,0.00025299,3]
[356109161,1741909899464,-500.0,0.00025299,3]
[356109162,1741909899474,-500.0,0.00025299,3]
[356109163,1741909899483,-2182.31,0.00025299,3]
[356109164,1741909899493,-500.0,0.00025299,3]
[356109165,1741909899503,-1551.28,0.00025299,3]
[356109166,1741909899513,-705.21,0.00025299,3]
[356109167,1741909899523,-500.0,0.00025299,3]
[356109168,1741909899532,-500.0,0.00025299,3]
[356109169,1741909899542,-513.62,0.00025299,3]
[356109170,1741909899551,-575.64,0.00025299,3]
[356109171,1741909899561,-1703.64,0.00025299,3]
[356109172,1741909899571,-500.0,0.00025299,3]
[356109173,1741909899580,-500.0,0.00025299,3]
[356109174,1741909899590,-500.0,0.00025299,3]
[356109175,1741909899599,-3566.18,0.00025299,2]
[356109176,1741909899610,-500.0,0.00025299,3]
[356109177,1741909899619,-2647.01,0.00025299,3]
[356109178,1741909899629,-694.85,0.00025299,3]
[356109179,1741909899639,-1632.96,0.00025299,3]
[356109180,1741909899648,-500.0,0.00025299,3]
[356109181,1741909899658,-1051.26,0.00025299,3]
[356109182,1741909899668,-703.55,0.00025299,3]
[356109183,1741909899678,-1122.02,0.00025299,3]
[356109184,1741909899687,-500.0,0.00025299,3]
[356109185,1741909899696,-1030.95,0.00025299,3]
[356109186,1741909899706,-547.84,0.00025299,3]
[356109187,1741909899715,-732.74,0.00025299,3]
[356109188,1741909899725,-500.0,0.00025299,3]
[356109189,1741909899735,-685.17,0.00025299,3]
[356109190,1741909899745,-636.55,0.00025299,3]
[356109191,1741909899755,-500.0,0.00025299,3]
[356109192,1741909899765,-500.0,0.00025299,3]
[356109193,1741909899775,-760.24,0.00025299,3]
[356109194,1741909899784,-666.39,0.00025299,3]
[356109195,1741909899794,-1136.63,0.00025299,3]
[356109196,1741909899803,-1322.8,0.000253,3]
[356109197,1741909899813,-500.0,0.000253,3]
[356109198,1741909899822,-2009.2,0.000253,3]
[356109199,1741909899831,-1045.89,0.000253,3]
[356109200,1741909899841,-500.0,0.000253,3]
[356109201,1741909899850,-516.89,0.000253,3]
[356109202,1741909899860,-500.0,0.000253,3]
[356109203,1741909899869,-500.0,0.000253,3]
[356109204,1741909899879,-520.87,0.000253,3]
[356109205,1741909899888,-549.11,0.000253,3]
[356109206,1741909899897,-430.10481701,0.000253,3]
[356109207,1741909899907,-500.0,0.000253,2]
[356109208,1741909899917,-1886.33,0.000253,3]
[356109209,1741909899926,-1603.3,0.000253,3]
[356109210,1741909899935,-507.55,0.000253,3]
[356109211,1741909899945,-500.0,0.000253,3]
[356109212,1741909899955,-500.0,0.000253,3]
[356109213,1741909899964,-500.0,0.000253,3]
[356109214,1741909899974,-1799.26,0.000253,3]
[356109215,1741909899984,-500.0,0.000253,3]
[356109216,1741909899994,-1038.47,0.000253,3]
[356109217,1741909900004,-1529.19,0.000253,3]
[356109218,1741909900014,-1146.19,0.000253,3]
[356109219,1741909900024,-1230.07,0.000253,3]
[356109220,1741909900033,-500.0,0.000253,3]
[356109221,1741909900042,-766.89,0.000253,3]
[356109222,1741909900052,-828.77,0.000253,3]
[356109223,1741909900062,-974.37,0.000253,3]
[356109224,1741909900072,-878.52,0.000253,3]
[356109225,1741909900081,-581.67,0.000253,3]
[356109226,1741909900091,-3568.36,0.000253,3]
[356109227,1741909900100,-2023.2,0.000253,3]
[356109228,1741909900110,-2022.67,0.000253,3]
[356109229,1741909900119,-1071.52,0.000253,3]
[356109230,1741909900129,-1318.79,0.000253,3]
[356109231,1741909900139,-817.82,0.000253,3]
[356109232,1741909900149,-1858.28,0.000253,3]
[356109233,1741909900158,-1341.33,0.000253,3]
[356109234,1741909900168,-500.0,0.000253,3]
[356109235,1741909900178,-1345.3,0.000253,3]
[356109236,1741909900187,-2980.86,0.000253,3]
[356109237,1741909900197,-1005.07,0.000253,3]
[356109238,1741909900207,-2009.8,0.000253,3]
[356109239,1741909900216,-500.0,0.000253,3]
[356109240,1741909900226,-500.0,0.000253,3]
[356109241,1741909900235,-3283.37,0.000253,3]
[356109242,1741909900245,-1531.97,0.000253,3]
[356109243,1741909900256,-647.14,0.000253,3]
[356109244,1741909900266,-1389.09,0.000253,3]
[356109245,1741909900276,-558.82,0.000253,3]
[356109246,1741909900286,-535.09,0.000253,3]
[356109247,1741909900295,-1705.22,0.000253,3]
[356109248,1741909900305,-767.63,0.000253,3]
[356109249,1741909900314,-500.0,0.000253,3]
[356109250,1741909900324,-638.89,0.000253,3]
[356109251,1741909900333,-573.45,0.000253,3]
[356109252,1741909900342,-4252.22,0.000253,3]
[356109253,1741909900352,-866.68,0.000253,3]
[356109254,1741909900361,-957.24,0.000253,3]
[356109255,1741909900371,-813.96,0.000253,3]
[356109256,1741909900381,-1909.43,0.000253,3]
[356109257,1741909900390,-500.0,0.000253,3]
[356109258,1741909900400,-1214.54,0.000253,3]
[356109259,1741909900409,-957.65,0.000253,3]
[356109260,1741909900419,-500.0,0.000253,3]
[356109261,1741909900428,-1011.7,0.000253,3]
[356109262,1741909900440,-509.81,0.000253,3]
[356109263,1741909900454,-705.12,0.000253,3]
[356109264,1741909900463,-1624.15,0.000253,3]
[356109265,1741909900473,-1714.12,0.000253,3]
[356109266,1741909900484,-581.8,0.000253,3]
[356109267,1741909900493,-1453.97,0.000253,3]
[356109268,1741909900503,-511.82,0.000253,3]
[356109269,1741909900512,-732.6,0.000253,3]
[356109270,1741909900524,-1223.35,0.000253,3]
[356109271,1741909900534,-500.0,0.000253,3]
[356109272,1741909900544,-1621.13,0.000253,3]
[356109273,1741909900554,-684.37,0.000253,3]
[356109274,1741909900564,-500.0,0.000253,3]
[356109275,1741909900573,-2382.43,0.000253,3]
[356109276,1741909900583,-500.0,0.000253,3]
[356109277,1741909900593,-568.39,0.000253,3]
[356109278,1741909900603,-1633.72,0.000253,3]
[356109279,1741909900613,-1670.95,0.000253,3]
[356109280,1741909900623,-500.0,0.000253,3]
[356109281,1741909900632,-500.0,0.000253,3]
[356109282,1741909900642,-1602.7,0.000253,3]
[356109283,1741909900651,-500.0,0.000253,3]
[356109284,1741909900661,-728.56,0.000253,3]
[356109285,1741909900672,-500.0,0.000253,3]
[356109286,1741909900682,-1726.02,0.000253,3]
[356109287,1741909900692,-500.0,0.000253,3]
[356109288,1741909900702,-1847.97,0.000253,3]
[356109289,1741909900711,-1144.38,0.000253,3]
[356109290,1741909900721,-1019.22,0.000253,3]
[356109291,1741909900730,-501.97,0.000253,3]
[356109292,1741909900741,-500.0,0.000253,3]
[356109293,1741909900751,-500.0,0.000253,3]
[356109294,1741909900760,-1182.53,0.000253,3]
[356109295,1741909900770,-1076.88,0.000253,3]
[356109296,1741909900779,-500.0,0.00025301,3]
[356109297,1741909900789,-1821.49,0.00025301,3]
[356109298,1741909900798,-1637.021766,0.00025301,7]
[356109299,1741909900808,-500.0,0.00025301,3]
[356109300,1741909900817,-1637.021766,0.00025301,7]
[356109301,1741909900826,-534.21,0.00025301,3]
[356109302,1741909900836,-721.07,0.00025301,3]
[356109303,1741909900845,-544.4172482,0.00025301,3]
[356109304,1741909901053,-835.2,0.00025301,3]
[356109305,1741909901063,-500.0,0.00025301,3]
[356109306,1741909901073,-640.39,0.00025301,3]
[356109307,1741909901084,-500.0,0.00025301,3]
[356109308,1741909901093,-500.0,0.00025301,3]
[356109309,1741909901102,-1649.68,0.00025301,3]
[356109310,1741909901112,-602.71,0.00025301,3]
[356109311,1741909901121,-185.452921,0.00025301,7]
[356109312,1741909901131,-500.0,0.00025301,3]
[356109313,1741909901140,-185.452921,0.00025301,7]
[356109314,1741909901150,-500.0,0.00025301,3]
[356109315,1741909901159,-500.0,0.00025301,3]
[356109316,1741909901169,-500.0,0.00025301,3]
[356109317,1741909901178,-363.544473,0.00025301,7]
[356109318,1741909901188,-363.544476,0.00025301,7]
[356109319,1741909901197,-500.0,0.00025301,3]
[356109320,1741909901207,-717.27,0.00025301,3]
[356109321,1741909901217,-938.73,0.00025301,3]
[356109322,1741909901226,-1058.89,0.00025301,3]
[356109323,1741909901236,-942.53,0.00025301,3]
[356109324,1741909901246,-578.57,0.00025301,3]
[356109325,1741909901256,-909.28,0.00025301,3]
[356109326,1741909901265,-618.61,0.00025301,3]
[356109327,1741909901275,-500.0,0.00025301,3]
[356109328,1741909901285,-500.0,0.00025301,3]
[356109329,1741909901294,-500.0,0.00025301,3]
[356109330,1741909901303,-933.18,0.00025301,3]
[356109331,1741909901313,-500.0,0.00025301,3]
[356109332,1741909901322,-610.2,0.00025301,3]
[356109333,1741909901332,-191.184227,0.00025301,7]
[356109334,1741909901342,-500.0,0.00025301,3]
[356109335,1741909901352,-191.18422,0.00025301,7]
[356109336,1741909901362,-262.17523,0.00025301,7]
[356109337,1741909901371,-500.0,0.00025301,3]
[356109338,1741909901381,-262.17524,0.00025301,7]
[356109339,1741909901391,-500.0,0.00025301,3]
[356109340,1741909901400,-500.0,0.00025301,3]
[356109341,1741909901410,-10000.0,0.00025301,7]
[356109342,1741909901420,-500.0,0.00025301,3]
[356109343,1741909901429,-500.0,0.00025301,3]
[356109344,1741909901443,-10000.0,0.00025301,7]
[356109345,1741909901453,-10000.0,0.00025301,7]
[356109346,1741909901463,-500.0,0.00025301,3]
[356109347,1741909901472,-10000.0,0.00025301,7]
[356109348,1741909901483,-10000.0,0.00025301,7]
[356109349,1741909901492,-2202.251602,0.00025301,7]
[356109350,1741909901502,-1597.02,0.00025301,3]
[356109351,1741909901511,-500.0,0.00025301,3]
[356109352,1741909901522,-2202.2516,0.00025301,7]
[356109353,1741909901532,-1208.71,0.00025301,3]
[356109354,1741909901541,-500.0,0.00025301,3]
[356109355,1741909901551,-961.24,0.00025301,3]
[356109356,1741909901560,-500.0,0.00025301,3]
[356109357,1741909901569,-500.0,0.00025301,3]
[356109358,1741909901579,-500.0,0.00025301,3]
[356109359,1741909901588,-945.98,0.00025301,3]
[356109360,1741909901598,-500.0,0.00025301,3]
[356109361,1741909901607,-500.0,0.00025301,3]
[356109362,1741909901618,-500.0,0.00025301,3]
[356109363,1741909901627,-500.0,0.00025301,3]
[356109364,1741909901637,-599.05,0.00025301,3]
[356109365,1741909901646,-500.0,0.00025301,3]
[356109366,1741909901655,-500.0,0.00025301,3]
[356109367,1741909901665,-500.0,0.00025301,3]
[356109368,1741909901675,-524.04,0.00025301,3]
[356109369,1741909901684,-500.0,0.00025301,3]
[356109370,1741909901694,-500.0,0.00025301,3]
[356109371,1741909901703,-1162.99,0.00025301,3]
[356109372,1741909901712,-1064.48,0.00025301,3]
[356109373,1741909901721,-151.0,0.00025301,7]
[356109374,1741909901731,-500.0,0.00025301,3]
[356109375,1741909901742,-1104.79,0.00025301,3]
[356109376,1741909901752,-1347.3,0.00025301,2]
[356109377,1741909901762,-565.96896398,0.00025301,3]
[356109378,1741909901772,-649.98454747,0.00025301,3]
[356109379,1741909901781,-315.72026919,0.00025301,3]
[356109380,1741909901791,-1177.15,0.00025301,3]
[356109381,1741909901800,-1278.64,0.00025301,3]
[356109382,1741909901809,-1471.45,0.00025301,3]
[356109383,1741909901819,-500.0,0.00025301,3]
[356109384,1741909901828,-500.0,0.00025301,3]
[356109385,1741909901837,-500.0,0.00025301,3]
[356109386,1741909901847,-1032.31,0.00025301,3]
[356109387,1741909901856,-500.0,0.00025301,3]